[Event "*** Titled Tuesday Blitz"]
[Site "Chess.com"]
[Date "2020.11.10"]
[Round "4"]
[White "GukeshDommaraju"]
[Black "LaStreetCmaMaison"]
[Result "1-0"]
[WhiteElo "2868"]
[BlackElo "2616"]
[TimeControl "180+1"]
[EndTime "10:41:58 PST"]
[Termination "GukeshDommaraju won by resignation"]

1. d4 {[%clk 0:03:00.9]} 1... Nf6 {[%clk 0:02:58.7]} 2. Nf3 {[%clk 0:03:00]}
2... d5 {[%clk 0:02:57.3]} 3. Bf4 {[%clk 0:02:59.4]} 3... Bf5 {[%clk 0:02:55.7]}
4. e3 {[%clk 0:02:58.1]} 4... e6 {[%clk 0:02:56.2]} 5. c4 {[%clk 0:02:57.2]}
5... Bd6 {[%clk 0:02:54.6]} 6. Bxd6 {[%clk 0:02:51.4]} 6... Qxd6 {[%clk
0:02:53.3]} 7. Nc3 {[%clk 0:02:51.1]} 7... c6 {[%clk 0:02:50]} 8. Bd3 {[%clk
0:02:45]} 8... Bxd3 {[%clk 0:02:42.3]} 9. Qxd3 {[%clk 0:02:45.9]} 9... Qb4
{[%clk 0:02:37.1]} 10. cxd5 {[%clk 0:02:34.4]} 10... exd5 {[%clk 0:02:27]} 11.
O-O {[%clk 0:02:34]} 11... O-O {[%clk 0:02:24.6]} 12. a3 {[%clk 0:02:31.4]}
12... Qd6 {[%clk 0:02:22]} 13. b4 {[%clk 0:02:30.2]} 13... Nbd7 {[%clk
0:02:20.4]} 14. b5 {[%clk 0:02:25.1]} 14... Rfe8 {[%clk 0:02:11.8]} 15. bxc6
{[%clk 0:02:24.2]} 15... bxc6 {[%clk 0:02:12.5]} 16. Na4 {[%clk 0:02:20.7]}
16... Ne4 {[%clk 0:02:06.6]} 17. Rfc1 {[%clk 0:02:13.9]} 17... c5 {[%clk
0:02:03.3]} 18. dxc5 {[%clk 0:02:12.1]} 18... Ndxc5 {[%clk 0:02:04.2]} 19. Nxc5
{[%clk 0:02:11.8]} 19... Nxc5 {[%clk 0:02:03.6]} 20. Qb5 {[%clk 0:02:08.6]}
20... Rec8 {[%clk 0:01:59.7]} 21. Rab1 {[%clk 0:01:58.3]} 21... h6 {[%clk
0:01:38]} 22. h3 {[%clk 0:01:54.7]} 22... Ne6 {[%clk 0:01:20.9]} 23. Rxc8+
{[%clk 0:01:41.9]} 23... Rxc8 {[%clk 0:01:21.8]} 24. Qb7 {[%clk 0:01:41.6]}
24... Rc7 {[%clk 0:01:18.3]} 25. Qb8+ {[%clk 0:01:36]} 25... Kh7 {[%clk
0:01:17.5]} 26. Qb3 {[%clk 0:01:27.6]} 26... g6 {[%clk 0:01:01.7]} 27. Rd1
{[%clk 0:01:26.1]} 27... Rc5 {[%clk 0:00:58.2]} 28. g3 {[%clk 0:01:22.5]} 28...
Ra5 {[%clk 0:00:57.1]} 29. Rd3 {[%clk 0:01:16.8]} 29... Nc5 {[%clk 0:00:56.5]}
30. Qxd5 {[%clk 0:01:16.4]} 30... Qf6 {[%clk 0:00:44]} 31. Rd4 {[%clk
0:01:02.4]} 31... Kg7 {[%clk 0:00:30.1]} 32. Rf4 {[%clk 0:01:00.9]} 32... Qe7
{[%clk 0:00:27]} 33. Ne5 {[%clk 0:00:54.5]} 33... f6 {[%clk 0:00:20.4]} 34. Nc6
{[%clk 0:00:54]} 34... Qb7 {[%clk 0:00:14.6]} 35. Qd6 {[%clk 0:00:46.7]} 35...
Ra6 {[%clk 0:00:14.6]} 36. Qxf6+ {[%clk 0:00:46.2]} 36... Kh7 {[%clk 0:00:14.4]}
37. Qf8 {[%clk 0:00:34.2]} 1-0

[Event "*** Titled Tuesday Blitz"]
[Site "Chess.com"]
[Date "2020.11.10"]
[Round "4"]
[White "Mr_Sinigami"]
[Black "mishanick"]
[Result "0-1"]
[WhiteElo "2533"]
[BlackElo "3039"]
[TimeControl "180+1"]
[EndTime "10:41:59 PST"]
[Termination "mishanick won by resignation"]

1. d4 {[%clk 0:03:00.9]} 1... Nf6 {[%clk 0:02:53]} 2. Nf3 {[%clk 0:02:59.9]}
2... d5 {[%clk 0:02:53.1]} 3. Bf4 {[%clk 0:02:59.8]} 3... c5 {[%clk 0:02:53]} 4.
e3 {[%clk 0:02:59.7]} 4... Nc6 {[%clk 0:02:53.3]} 5. c3 {[%clk 0:02:58.5]} 5...
Qb6 {[%clk 0:02:53.2]} 6. Qc1 {[%clk 0:02:52.8]} 6... Bf5 {[%clk 0:02:51.7]} 7.
dxc5 {[%clk 0:02:50.4]} 7... Qxc5 {[%clk 0:02:51.2]} 8. Nbd2 {[%clk 0:02:50.1]}
8... e6 {[%clk 0:02:51.5]} 9. Nd4 {[%clk 0:02:39.6]} 9... Bg6 {[%clk 0:02:48.6]}
10. N2f3 {[%clk 0:02:14.8]} 10... Be7 {[%clk 0:02:45.8]} 11. Nb5 {[%clk
0:02:05.8]} 11... O-O {[%clk 0:02:02.4]} 12. b4 {[%clk 0:01:59.8]} 12... Nxb4
{[%clk 0:02:02.3]} 13. cxb4 {[%clk 0:01:44.8]} 13... Qxb4+ {[%clk 0:02:03.2]}
14. Qd2 {[%clk 0:01:18]} 14... Ne4 {[%clk 0:01:48.2]} 15. Qxb4 {[%clk
0:01:17.1]} 15... Bxb4+ {[%clk 0:01:49.1]} 16. Ke2 {[%clk 0:01:11.3]} 16... a6
{[%clk 0:01:49.5]} 17. Nbd4 {[%clk 0:01:05.5]} 17... Nc3+ {[%clk 0:01:47]} 18.
Ke1 {[%clk 0:01:03.4]} 18... Ne4+ {[%clk 0:01:39.6]} 19. Ke2 {[%clk 0:00:59.1]}
19... Nc3+ {[%clk 0:01:29.3]} 20. Ke1 {[%clk 0:00:58.6]} 20... Nxa2+ {[%clk
0:01:28.6]} 21. Kd1 {[%clk 0:00:53.1]} 21... Nc3+ {[%clk 0:01:27.5]} 22. Kc1
{[%clk 0:00:53]} 22... Rac8 {[%clk 0:01:21.7]} 23. Kb2 {[%clk 0:00:51.7]} 23...
Ne4 {[%clk 0:01:22.1]} 24. Kb3 {[%clk 0:00:44.8]} 24... a5 {[%clk 0:01:15.6]}
25. Be2 {[%clk 0:00:44.6]} 25... Nxf2 {[%clk 0:01:05.3]} 26. Rhc1 {[%clk
0:00:42.7]} 26... Ne4 {[%clk 0:01:05.9]} 27. Ne5 {[%clk 0:00:33]} 27... Nc5+
{[%clk 0:01:05.2]} 28. Kb2 {[%clk 0:00:31.9]} 28... Be4 {[%clk 0:01:02.5]} 29.
Nc2 {[%clk 0:00:21.3]} 29... Bd2 {[%clk 0:00:52.2]} 30. Rd1 {[%clk 0:00:17.1]}
30... Na4+ {[%clk 0:00:43.9]} 31. Rxa4 {[%clk 0:00:14.1]} 31... Rxc2+ {[%clk
0:00:44.5]} 32. Kb3 {[%clk 0:00:14.2]} 32... Rfc8 {[%clk 0:00:44.7]} 33. Raa1
{[%clk 0:00:05.7]} 33... Bc3 {[%clk 0:00:36.5]} 34. Rab1 {[%clk 0:00:02.7]}
34... Rxe2 {[%clk 0:00:33.7]} 35. Rdc1 {[%clk 0:00:02.6]} 35... Bxb1 {[%clk
0:00:33.1]} 36. Rxc3 {[%clk 0:00:02.6]} 36... Rxc3+ {[%clk 0:00:33.7]} 37. Kxc3
{[%clk 0:00:03.5]} 0-1

[Event "*** Titled Tuesday Blitz"]
[Site "Chess.com"]
[Date "2020.11.10"]
[Round "4"]
[White "IMRosen"]
[Black "AttractiveMustard"]
[Result "1-0"]
[WhiteElo "2568"]
[BlackElo "2394"]
[TimeControl "180+1"]
[EndTime "10:42:01 PST"]
[Termination "IMRosen won on time"]

1. d4 {[%clk 0:03:00.9]} 1... Nf6 {[%clk 0:02:58.1]} 2. Bf4 {[%clk 0:02:59.7]}
2... d5 {[%clk 0:02:52.2]} 3. e3 {[%clk 0:02:59.4]} 3... c5 {[%clk 0:02:51.9]}
4. Nf3 {[%clk 0:02:57]} 4... Nc6 {[%clk 0:02:47.3]} 5. Nbd2 {[%clk 0:02:56.8]}
5... Bf5 {[%clk 0:02:41.8]} 6. dxc5 {[%clk 0:02:56.8]} 6... e6 {[%clk
0:02:38.7]} 7. Nd4 {[%clk 0:02:57]} 7... Bg6 {[%clk 0:02:30.2]} 8. Bb5 {[%clk
0:02:51.6]} 8... Qd7 {[%clk 0:02:08.5]} 9. N2f3 {[%clk 0:02:45.4]} 9... Bh5
{[%clk 0:02:00.7]} 10. b4 {[%clk 0:02:12.3]} 10... Ne4 {[%clk 0:01:40.9]} 11.
Qd3 {[%clk 0:02:07.7]} 11... f6 {[%clk 0:01:28.7]} 12. c4 {[%clk 0:01:53.3]}
12... Bg6 {[%clk 0:01:13.6]} 13. Nxe6 {[%clk 0:01:09.4]} 13... Nxc5 {[%clk
0:00:38.1]} 14. Nc7+ {[%clk 0:00:28.2]} 14... Qxc7 {[%clk 0:00:31.8]} 15. Qxg6+
{[%clk 0:00:28.1]} 15... hxg6 {[%clk 0:00:32.7]} 16. Bxc7 {[%clk 0:00:27.8]}
16... Nd3+ {[%clk 0:00:31.6]} 17. Ke2 {[%clk 0:00:22.8]} 17... dxc4 {[%clk
0:00:29.2]} 18. a3 {[%clk 0:00:17.9]} 18... Rc8 {[%clk 0:00:25]} 19. Bxc6+
{[%clk 0:00:06.9]} 19... bxc6 {[%clk 0:00:23.9]} 20. Bg3 {[%clk 0:00:07.6]}
20... a5 {[%clk 0:00:11.9]} 21. Nd2 {[%clk 0:00:06.9]} 21... axb4 {[%clk
0:00:09.5]} 22. Nxc4 {[%clk 0:00:07.2]} 22... Rd8 {[%clk 0:00:04.4]} 23. axb4
{[%clk 0:00:05.2]} 23... Nxb4 {[%clk 0:00:03.6]} 24. Rhb1 {[%clk 0:00:05.1]}
24... Be7 {[%clk 0:00:02.7]} 25. Ra7 {[%clk 0:00:04.8]} 25... Nd5 {[%clk
0:00:02]} 26. Rbb7 {[%clk 0:00:03.6]} 26... Kf7 {[%clk 0:00:02.1]} 27. e4 {[%clk
0:00:04]} 1-0

[Event "*** Titled Tuesday Blitz"]
[Site "Chess.com"]
[Date "2020.11.10"]
[Round "4"]
[White "julinha97"]
[Black "Malysch"]
[Result "0-1"]
[WhiteElo "2173"]
[BlackElo "2409"]
[TimeControl "180+1"]
[EndTime "10:42:01 PST"]
[Termination "Malysch won by checkmate"]

1. e4 {[%clk 0:03:00.9]} 1... c5 {[%clk 0:02:51.1]} 2. Nf3 {[%clk 0:03:00.7]}
2... d6 {[%clk 0:02:50]} 3. d4 {[%clk 0:03:00.2]} 3... cxd4 {[%clk 0:02:50.4]}
4. Nxd4 {[%clk 0:03:01.1]} 4... Nf6 {[%clk 0:02:50]} 5. Nc3 {[%clk 0:03:01.3]}
5... Nc6 {[%clk 0:02:50]} 6. Bg5 {[%clk 0:03:00.1]} 6... e6 {[%clk 0:02:50.9]}
7. Qd2 {[%clk 0:02:59.7]} 7... Be7 {[%clk 0:02:48.8]} 8. O-O-O {[%clk 0:02:58]}
8... Nxd4 {[%clk 0:02:48.2]} 9. Qxd4 {[%clk 0:02:57.4]} 9... O-O {[%clk
0:02:48.7]} 10. Kb1 {[%clk 0:02:54.3]} 10... Qa5 {[%clk 0:02:46.7]} 11. f4
{[%clk 0:02:44.3]} 11... h6 {[%clk 0:02:45.9]} 12. Bh4 {[%clk 0:02:21.6]} 12...
e5 {[%clk 0:02:42]} 13. Qd2 {[%clk 0:01:52.2]} 13... exf4 {[%clk 0:02:40.5]} 14.
Qxf4 {[%clk 0:01:45.9]} 14... g5 {[%clk 0:02:31.6]} 15. Qg3 {[%clk 0:01:33.3]}
15... Kh8 {[%clk 0:02:03.7]} 16. Nd5 {[%clk 0:01:08]} 16... Nxd5 {[%clk
0:01:03]} 17. Rxd5 {[%clk 0:01:03.4]} 17... Qd8 {[%clk 0:01:01.9]} 18. Bxg5
{[%clk 0:00:44.3]} 18... Bxg5 {[%clk 0:00:56.2]} 19. e5 {[%clk 0:00:43.5]} 19...
Be6 {[%clk 0:00:50.5]} 20. Rxd6 {[%clk 0:00:40.2]} 20... Qa5 {[%clk 0:00:46.6]}
21. a3 {[%clk 0:00:33.4]} 21... Rad8 {[%clk 0:00:44.3]} 22. Bd3 {[%clk
0:00:31.6]} 22... Rxd6 {[%clk 0:00:42.5]} 23. exd6 {[%clk 0:00:32.5]} 23... Qd5
{[%clk 0:00:40]} 24. b3 {[%clk 0:00:32.5]} 24... Rd8 {[%clk 0:00:37.4]} 25. h4
{[%clk 0:00:30]} 25... Bf6 {[%clk 0:00:36.8]} 26. Rf1 {[%clk 0:00:22.3]} 26...
Qd4 {[%clk 0:00:34.4]} 27. Kc1 {[%clk 0:00:20.4]} 27... Bxh4 {[%clk 0:00:23.3]}
28. Qf3 {[%clk 0:00:10.1]} 28... Bg5+ {[%clk 0:00:21.1]} 29. Kd1 {[%clk
0:00:10.6]} 29... Rxd6 {[%clk 0:00:21.4]} 30. Ke2 {[%clk 0:00:07.5]} 30... Bg4
{[%clk 0:00:20.9]} 31. Rh1 {[%clk 0:00:05.1]} 31... Bxf3+ {[%clk 0:00:19.6]} 32.
gxf3 {[%clk 0:00:06]} 32... Re6+ {[%clk 0:00:19.8]} 33. Kd1 {[%clk 0:00:06.9]}
33... Qa1# {[%clk 0:00:18.6]} 0-1

[Event "*** Titled Tuesday Blitz"]
[Site "Chess.com"]
[Date "2020.11.10"]
[Round "4"]
[White "PetrolulSah"]
[Black "ponzianipower"]
[Result "1/2-1/2"]
[WhiteElo "2213"]
[BlackElo "2005"]
[TimeControl "180+1"]
[EndTime "10:42:01 PST"]
[Termination "Game drawn by repetition"]

1. d4 {[%clk 0:03:00]} 1... d5 {[%clk 0:02:59.7]} 2. Nf3 {[%clk 0:02:58.8]} 2...
Nf6 {[%clk 0:02:59]} 3. g3 {[%clk 0:02:58.9]} 3... e6 {[%clk 0:02:52.6]} 4. Bg2
{[%clk 0:02:58.9]} 4... Be7 {[%clk 0:02:50.5]} 5. O-O {[%clk 0:02:59]} 5... O-O
{[%clk 0:02:49.8]} 6. c4 {[%clk 0:02:59.1]} 6... b6 {[%clk 0:02:48]} 7. cxd5
{[%clk 0:02:56.8]} 7... exd5 {[%clk 0:02:48.9]} 8. Nc3 {[%clk 0:02:56.7]} 8...
Bb7 {[%clk 0:02:49.2]} 9. Bf4 {[%clk 0:02:54.5]} 9... Nbd7 {[%clk 0:02:46.5]}
10. Rc1 {[%clk 0:02:54]} 10... c5 {[%clk 0:02:42.1]} 11. dxc5 {[%clk 0:02:50.7]}
11... bxc5 {[%clk 0:02:40.4]} 12. Qb3 {[%clk 0:02:40.3]} 12... Nb6 {[%clk
0:02:23.7]} 13. a4 {[%clk 0:02:35.5]} 13... d4 {[%clk 0:02:07.5]} 14. Nb5 {[%clk
0:02:34.2]} 14... Nfd5 {[%clk 0:01:33.2]} 15. a5 {[%clk 0:02:27.1]} 15... Nxf4
{[%clk 0:01:30.3]} 16. gxf4 {[%clk 0:02:24.8]} 16... Nd5 {[%clk 0:00:32.6]} 17.
Ne5 {[%clk 0:02:13.1]} 17... Rb8 {[%clk 0:00:26.8]} 18. Qc4 {[%clk 0:01:55.6]}
18... Nxf4 {[%clk 0:00:15.5]} 19. Bxb7 {[%clk 0:01:43.6]} 19... Rxb7 {[%clk
0:00:16.4]} 20. e3 {[%clk 0:01:38.5]} 20... Ng6 {[%clk 0:00:08.8]} 21. Nc6
{[%clk 0:01:36]} 21... Qd7 {[%clk 0:00:06.2]} 22. Nxe7+ {[%clk 0:01:19.5]} 22...
Nxe7 {[%clk 0:00:07.1]} 23. Na3 {[%clk 0:01:10.7]} 23... Qg4+ {[%clk 0:00:06.4]}
24. Kh1 {[%clk 0:01:11]} 24... Qf3+ {[%clk 0:00:06.4]} 25. Kg1 {[%clk
0:01:11.2]} 25... Ng6 {[%clk 0:00:02.8]} 26. Rfd1 {[%clk 0:00:38.5]} 26... Rxb2
{[%clk 0:00:02.8]} 27. Qf1 {[%clk 0:00:31.7]} 27... Nh4 {[%clk 0:00:02.8]} 28.
Rc2 {[%clk 0:00:22.6]} 28... dxe3 {[%clk 0:00:02.9]} 29. Rxb2 {[%clk 0:00:19.9]}
29... Qg4+ {[%clk 0:00:03.5]} 30. Kh1 {[%clk 0:00:19]} 30... Qf3+ {[%clk
0:00:04.1]} 31. Kg1 {[%clk 0:00:19.1]} 31... Qg4+ {[%clk 0:00:04.6]} 32. Kh1
{[%clk 0:00:19.2]} 32... Qf3+ {[%clk 0:00:05.3]} 33. Kg1 {[%clk 0:00:18.8]}
1/2-1/2

[Event "*** Titled Tuesday Blitz"]
[Site "Chess.com"]
[Date "2020.11.10"]
[Round "4"]
[White "lucachess49"]
[Black "Paladin61"]
[Result "1-0"]
[WhiteElo "2364"]
[BlackElo "2537"]
[TimeControl "180+1"]
[EndTime "10:42:02 PST"]
[Termination "lucachess49 won by checkmate"]

1. d4 {[%clk 0:03:00.9]} 1... Nf6 {[%clk 0:02:59.7]} 2. c4 {[%clk 0:03:01.5]}
2... g6 {[%clk 0:02:58.6]} 3. f3 {[%clk 0:03:00.7]} 3... Bg7 {[%clk 0:02:58.5]}
4. e4 {[%clk 0:03:01.3]} 4... d6 {[%clk 0:02:58.7]} 5. Nc3 {[%clk 0:03:00.8]}
5... O-O {[%clk 0:02:59]} 6. Be3 {[%clk 0:03:00.7]} 6... c5 {[%clk 0:02:49.7]}
7. Nge2 {[%clk 0:02:54.9]} 7... Nc6 {[%clk 0:02:49.2]} 8. d5 {[%clk 0:02:50.6]}
8... Ne5 {[%clk 0:02:49]} 9. Ng3 {[%clk 0:02:51.2]} 9... h5 {[%clk 0:02:48.9]}
10. Bg5 {[%clk 0:02:44.3]} 10... Nh7 {[%clk 0:02:45.8]} 11. h4 {[%clk
0:02:40.4]} 11... Nxg5 {[%clk 0:02:37]} 12. hxg5 {[%clk 0:02:41.3]} 12... e6
{[%clk 0:02:37.2]} 13. f4 {[%clk 0:02:41.1]} 13... Ng4 {[%clk 0:02:36.9]} 14.
Qd3 {[%clk 0:02:31.8]} 14... exd5 {[%clk 0:02:31.2]} 15. cxd5 {[%clk 0:02:23]}
15... c4 {[%clk 0:02:02.8]} 16. Qd2 {[%clk 0:02:03.8]} 16... Qc7 {[%clk
0:01:43.7]} 17. Be2 {[%clk 0:01:59.2]} 17... a6 {[%clk 0:01:43.7]} 18. f5 {[%clk
0:01:42.4]} 18... Be5 {[%clk 0:01:39.5]} 19. Nxh5 {[%clk 0:00:33.9]} 19... gxh5
{[%clk 0:01:37.8]} 20. Bxg4 {[%clk 0:00:21.1]} 20... hxg4 {[%clk 0:01:17.2]} 21.
f6 {[%clk 0:00:20.9]} 21... Bg3+ {[%clk 0:01:03]} 22. Kd1 {[%clk 0:00:11.2]}
22... Be5 {[%clk 0:00:39.8]} 23. g3 {[%clk 0:00:09.8]} 23... Bxf6 {[%clk
0:00:05.5]} 24. gxf6 {[%clk 0:00:02.7]} 24... Qe7 {[%clk 0:00:04.7]} 25. Qg5#
{[%clk 0:00:02]} 1-0

[Event "*** Titled Tuesday Blitz"]
[Site "Chess.com"]
[Date "2020.11.10"]
[Round "4"]
[White "Grandelicious"]
[Black "Beltraxtor"]
[Result "1/2-1/2"]
[WhiteElo "2796"]
[BlackElo "2562"]
[TimeControl "180+1"]
[EndTime "10:42:06 PST"]
[Termination "Game drawn by repetition"]

1. e4 {[%clk 0:03:00.9]} 1... e5 {[%clk 0:02:58]} 2. Nf3 {[%clk 0:03:00.5]} 2...
Nf6 {[%clk 0:02:58.2]} 3. d4 {[%clk 0:02:58.2]} 3... Nxe4 {[%clk 0:02:57.6]} 4.
Bd3 {[%clk 0:02:56.8]} 4... Nc6 {[%clk 0:02:58]} 5. Nxe5 {[%clk 0:02:51.6]} 5...
Nxe5 {[%clk 0:02:53.6]} 6. dxe5 {[%clk 0:02:52.5]} 6... Nc5 {[%clk 0:02:51.3]}
7. O-O {[%clk 0:02:50.6]} 7... d6 {[%clk 0:02:42.2]} 8. Re1 {[%clk 0:02:11.3]}
8... Be6 {[%clk 0:02:36]} 9. Bf4 {[%clk 0:01:37.9]} 9... dxe5 {[%clk 0:02:20.7]}
10. Bxe5 {[%clk 0:01:38.8]} 10... Nxd3 {[%clk 0:02:17.8]} 11. cxd3 {[%clk
0:01:39.7]} 11... Qd7 {[%clk 0:01:56.3]} 12. Nc3 {[%clk 0:01:30.9]} 12... Rd8
{[%clk 0:01:19.3]} 13. d4 {[%clk 0:01:23]} 13... f6 {[%clk 0:00:49.1]} 14. Bxc7
{[%clk 0:00:58.3]} 14... Qxc7 {[%clk 0:00:49.3]} 15. Rxe6+ {[%clk 0:00:54.8]}
15... Kd7 {[%clk 0:00:49.9]} 16. Qg4 {[%clk 0:00:48.7]} 16... Qc4 {[%clk
0:00:31.8]} 17. Rxf6+ {[%clk 0:00:20.5]} 17... Kc7 {[%clk 0:00:30.2]} 18. Rf3
{[%clk 0:00:15.9]} 18... Kb8 {[%clk 0:00:28]} 19. h4 {[%clk 0:00:14]} 19... Rxd4
{[%clk 0:00:24.7]} 20. Qg3+ {[%clk 0:00:14.1]} 20... Bd6 {[%clk 0:00:21.7]} 21.
Qxg7 {[%clk 0:00:13.5]} 21... Rg8 {[%clk 0:00:21.7]} 22. Qf7 {[%clk 0:00:10.1]}
22... Rxg2+ {[%clk 0:00:08.1]} 23. Kxg2 {[%clk 0:00:07.3]} 23... Rg4+ {[%clk
0:00:08.6]} 24. Kh1 {[%clk 0:00:04.9]} 24... Rxh4+ {[%clk 0:00:08.4]} 25. Kg1
{[%clk 0:00:05.4]} 25... Rg4+ {[%clk 0:00:05.6]} 26. Kh1 {[%clk 0:00:05.8]}
26... Rh4+ {[%clk 0:00:05.4]} 27. Kg1 {[%clk 0:00:03.5]} 27... Rg4+ {[%clk
0:00:02.4]} 28. Kh1 {[%clk 0:00:04.1]} 28... Rh4+ {[%clk 0:00:02.8]} 1/2-1/2

[Event "*** Titled Tuesday Blitz"]
[Site "Chess.com"]
[Date "2020.11.10"]
[Round "4"]
[White "LittleMyMoomin"]
[Black "vrekhson"]
[Result "0-1"]
[WhiteElo "1826"]
[BlackElo "2201"]
[TimeControl "180+1"]
[EndTime "10:42:06 PST"]
[Termination "vrekhson won by checkmate"]

1. d4 {[%clk 0:03:00.9]} 1... Nf6 {[%clk 0:02:59.5]} 2. c4 {[%clk 0:03:00]} 2...
c5 {[%clk 0:02:59.1]} 3. Nf3 {[%clk 0:02:57.1]} 3... cxd4 {[%clk 0:02:58.7]} 4.
Nxd4 {[%clk 0:02:57.2]} 4... e5 {[%clk 0:02:50.2]} 5. Nb3 {[%clk 0:02:55.2]}
5... Bb4+ {[%clk 0:02:49]} 6. Nc3 {[%clk 0:02:54.9]} 6... Bxc3+ {[%clk 0:02:48]}
7. bxc3 {[%clk 0:02:54.8]} 7... O-O {[%clk 0:02:46.1]} 8. g3 {[%clk 0:02:53.6]}
8... Qc7 {[%clk 0:02:43.9]} 9. c5 {[%clk 0:02:16.8]} 9... Na6 {[%clk 0:02:32.8]}
10. Ba3 {[%clk 0:02:10]} 10... Qc6 {[%clk 0:02:21.7]} 11. Rg1 {[%clk 0:01:53.8]}
11... Qa4 {[%clk 0:01:59.3]} 12. Qc1 {[%clk 0:01:46.8]} 12... Re8 {[%clk
0:01:46.3]} 13. Bg2 {[%clk 0:01:46.2]} 13... e4 {[%clk 0:01:40.6]} 14. Nd4
{[%clk 0:01:07.9]} 14... Qc4 {[%clk 0:01:29.3]} 15. Nb3 {[%clk 0:00:38.4]} 15...
Nd5 {[%clk 0:01:23.6]} 16. Bb2 {[%clk 0:00:35.1]} 16... Nxc5 {[%clk 0:01:19.7]}
17. Nxc5 {[%clk 0:00:34.2]} 17... Qxc5 {[%clk 0:01:20.6]} 18. c4 {[%clk
0:00:26.7]} 18... e3 {[%clk 0:01:01.1]} 19. f4 {[%clk 0:00:21.5]} 19... Nb4
{[%clk 0:00:40.8]} 20. Qc3 {[%clk 0:00:20.4]} 20... f6 {[%clk 0:00:41.1]} 21.
Bf3 {[%clk 0:00:20.4]} 21... d6 {[%clk 0:00:37.8]} 22. Kf1 {[%clk 0:00:20.5]}
22... Bh3+ {[%clk 0:00:37.3]} 23. Bg2 {[%clk 0:00:19.3]} 23... Bf5 {[%clk
0:00:35.5]} 24. Bf3 {[%clk 0:00:19.3]} 24... Rac8 {[%clk 0:00:29.5]} 25. Kg2
{[%clk 0:00:19.7]} 25... Qxc4 {[%clk 0:00:29.8]} 26. Qa3 {[%clk 0:00:16.9]}
26... Be4 {[%clk 0:00:27.5]} 27. Rad1 {[%clk 0:00:16.6]} 27... Bxf3+ {[%clk
0:00:27.9]} 28. exf3 {[%clk 0:00:16.6]} 28... Qe2+ {[%clk 0:00:25.7]} 29. Kh1
{[%clk 0:00:16]} 29... Qxf3+ {[%clk 0:00:25.7]} 30. Rg2 {[%clk 0:00:15.6]} 30...
Qxd1+ {[%clk 0:00:26.6]} 31. Rg1 {[%clk 0:00:15.6]} 31... Qf3+ {[%clk 0:00:27]}
32. Rg2 {[%clk 0:00:16]} 32... Nc2 {[%clk 0:00:22.5]} 33. Qb3+ {[%clk
0:00:15.3]} 33... Kh8 {[%clk 0:00:21.8]} 34. Qf7 {[%clk 0:00:09.2]} 34... Qd1+
{[%clk 0:00:19.4]} 35. Rg1 {[%clk 0:00:09.2]} 35... Qf3+ {[%clk 0:00:20.3]} 36.
Rg2 {[%clk 0:00:09.1]} 36... e2 {[%clk 0:00:20.1]} 37. Bxf6 {[%clk 0:00:02.4]}
37... e1=Q# {[%clk 0:00:20]} 0-1

[Event "*** Titled Tuesday Blitz"]
[Site "Chess.com"]
[Date "2020.11.10"]
[Round "4"]
[White "sokidze"]
[Black "AsaHoffmann"]
[Result "1-0"]
[WhiteElo "2576"]
[BlackElo "2395"]
[TimeControl "180+1"]
[EndTime "10:42:07 PST"]
[Termination "sokidze won by resignation"]

1. e4 {[%clk 0:03:00.9]} 1... d6 {[%clk 0:02:51]} 2. d4 {[%clk 0:03:00.1]} 2...
Nf6 {[%clk 0:02:49.2]} 3. Nc3 {[%clk 0:02:59.9]} 3... c6 {[%clk 0:02:48.4]} 4.
f4 {[%clk 0:02:55.7]} 4... Qa5 {[%clk 0:02:47.1]} 5. Bd3 {[%clk 0:02:55.5]} 5...
e5 {[%clk 0:02:36.5]} 6. Nf3 {[%clk 0:02:54.7]} 6... exd4 {[%clk 0:02:35.3]} 7.
Nxd4 {[%clk 0:02:53.9]} 7... Qb6 {[%clk 0:02:34.7]} 8. Be2 {[%clk 0:02:17.6]}
8... Nbd7 {[%clk 0:02:28.8]} 9. O-O {[%clk 0:01:58.4]} 9... g6 {[%clk 0:02:28]}
10. Kh1 {[%clk 0:01:55]} 10... Bg7 {[%clk 0:02:27.8]} 11. Nb3 {[%clk 0:01:51.1]}
11... Qc7 {[%clk 0:02:20.9]} 12. Be3 {[%clk 0:01:50.5]} 12... O-O {[%clk
0:02:19.6]} 13. Bf3 {[%clk 0:01:49.7]} 13... Re8 {[%clk 0:02:18.6]} 14. a4
{[%clk 0:01:47.2]} 14... a5 {[%clk 0:02:17.9]} 15. Qd2 {[%clk 0:01:44.5]} 15...
Nc5 {[%clk 0:02:10.3]} 16. Nxc5 {[%clk 0:01:41.6]} 16... dxc5 {[%clk 0:02:10]}
17. e5 {[%clk 0:01:34.6]} 17... Nd7 {[%clk 0:02:00.5]} 18. Ne4 {[%clk
0:01:32.7]} 18... b6 {[%clk 0:01:58.8]} 19. Nd6 {[%clk 0:01:29.5]} 19... Rd8
{[%clk 0:01:52.6]} 20. Rfd1 {[%clk 0:01:01]} 20... Nxe5 {[%clk 0:01:44.1]} 21.
fxe5 {[%clk 0:01:00.4]} 21... Bxe5 {[%clk 0:01:43.4]} 22. Bf4 {[%clk 0:01:00.8]}
22... Bxf4 {[%clk 0:01:33.8]} 23. Qxf4 {[%clk 0:01:00.5]} 23... Be6 {[%clk
0:01:33.3]} 24. Qg3 {[%clk 0:00:54]} 24... Bd5 {[%clk 0:01:13.5]} 25. Bxd5
{[%clk 0:00:47.1]} 25... cxd5 {[%clk 0:01:12.9]} 26. Rxd5 {[%clk 0:00:40]} 26...
Qc6 {[%clk 0:01:07.4]} 27. Rad1 {[%clk 0:00:38.2]} 27... Qxa4 {[%clk 0:01:07]}
28. Qf2 {[%clk 0:00:38]} 28... Rf8 {[%clk 0:00:58.6]} 29. b3 {[%clk 0:00:36.8]}
29... Qg4 {[%clk 0:00:56.3]} 30. h3 {[%clk 0:00:35.2]} 30... Qe6 {[%clk
0:00:55.7]} 31. Nc4 {[%clk 0:00:32.1]} 31... a4 {[%clk 0:00:51.5]} 32. Rd6
{[%clk 0:00:30.8]} 32... Qe4 {[%clk 0:00:41.1]} 33. Nxb6 {[%clk 0:00:28.7]}
33... axb3 {[%clk 0:00:37.1]} 34. Nxa8 {[%clk 0:00:26.9]} 34... bxc2 {[%clk
0:00:37]} 35. Rc1 {[%clk 0:00:26.6]} 35... Rxa8 {[%clk 0:00:34.4]} 36. Qxc2
{[%clk 0:00:26.5]} 36... Qe3 {[%clk 0:00:31.4]} 37. Rdd1 {[%clk 0:00:25.3]}
37... Rc8 {[%clk 0:00:28.1]} 38. Re1 {[%clk 0:00:25.2]} 38... Qf4 {[%clk
0:00:26.8]} 39. Rcd1 {[%clk 0:00:25.4]} 39... c4 {[%clk 0:00:26.6]} 40. Qc3
{[%clk 0:00:25.5]} 40... h5 {[%clk 0:00:26.1]} 41. Rf1 {[%clk 0:00:25.2]} 41...
Qe4 {[%clk 0:00:24.7]} 42. Qf3 {[%clk 0:00:22.2]} 42... Qxf3 {[%clk 0:00:24.3]}
43. Rxf3 {[%clk 0:00:22.2]} 43... f5 {[%clk 0:00:24.2]} 44. Rc1 {[%clk
0:00:22.4]} 44... Kf7 {[%clk 0:00:23.9]} 45. Rfc3 {[%clk 0:00:23.3]} 45... Ke6
{[%clk 0:00:24]} 46. Rxc4 {[%clk 0:00:23.9]} 1-0